[Event "*** Titled Tuesday Blitz"]
[Site "Chess.com"]
[Date "2020.10.27"]
[Round "1"]
[White "MattyDPerrine"]
[Black "GOGIEFF"]
[Result "0-1"]
[WhiteElo "2455"]
[BlackElo "2878"]
[TimeControl "180+1"]
[EndTime "10:06:01 PDT"]
[Termination "GOGIEFF won by resignation"]

1. e4 {[%clk 0:02:58.2]} 1... c5 {[%clk 0:02:59.8]} 2. Nf3 {[%clk 0:02:58.3]}
2... d6 {[%clk 0:03:00.2]} 3. Bb5+ {[%clk 0:02:58.7]} 3... Nd7 {[%clk
0:02:59.6]} 4. Ba4 {[%clk 0:02:58.9]} 4... Nf6 {[%clk 0:02:59.1]} 5. O-O {[%clk
0:02:59.2]} 5... Nxe4 {[%clk 0:02:59.4]} 6. Re1 {[%clk 0:02:59.2]} 6... Nf6
{[%clk 0:02:59.3]} 7. d4 {[%clk 0:02:59.5]} 7... e6 {[%clk 0:02:57.7]} 8. d5
{[%clk 0:02:59.7]} 8... e5 {[%clk 0:02:57.6]} 9. Nxe5 {[%clk 0:03:00]} 9... Be7
{[%clk 0:02:56.6]} 10. Nc6 {[%clk 0:02:34.6]} 10... bxc6 {[%clk 0:02:55.1]} 11.
dxc6 {[%clk 0:02:35.5]} 11... O-O {[%clk 0:02:52.9]} 12. cxd7 {[%clk 0:02:34.3]}
12... Bxd7 {[%clk 0:02:51.8]} 13. Bxd7 {[%clk 0:02:09.3]} 13... Qxd7 {[%clk
0:02:52.7]} 14. c4 {[%clk 0:02:06.8]} 14... Rfe8 {[%clk 0:02:32.9]} 15. Nc3
{[%clk 0:02:05.4]} 15... Qf5 {[%clk 0:02:27.4]} 16. h3 {[%clk 0:01:45.8]} 16...
Bf8 {[%clk 0:02:23.5]} 17. Be3 {[%clk 0:01:32.8]} 17... Re6 {[%clk 0:02:21.1]}
18. Qb1 {[%clk 0:01:17.7]} 18... Qh5 {[%clk 0:02:19.5]} 19. Qd3 {[%clk
0:01:13.8]} 19... a6 {[%clk 0:02:15.5]} 20. Bf4 {[%clk 0:01:04.1]} 20... Rae8
{[%clk 0:02:08.7]} 21. Rxe6 {[%clk 0:00:51.2]} 21... Rxe6 {[%clk 0:02:09.6]} 22.
Rd1 {[%clk 0:00:50.8]} 22... g5 {[%clk 0:02:06.8]} 23. Bg3 {[%clk 0:00:43.5]}
23... g4 {[%clk 0:02:06.7]} 24. hxg4 {[%clk 0:00:40.1]} 24... Nxg4 {[%clk
0:02:06.5]} 25. Bf4 {[%clk 0:00:25.5]} 25... Bg7 {[%clk 0:02:01.5]} 26. Nd5
{[%clk 0:00:20.6]} 26... Bd4 {[%clk 0:02:00.9]} 27. Bg3 {[%clk 0:00:09.7]} 27...
Rh6 {[%clk 0:01:55.9]} 28. Kf1 {[%clk 0:00:10.1]} 28... Qh1+ {[%clk 0:01:46.2]}
29. Ke2 {[%clk 0:00:10.4]} 29... Qxg2 {[%clk 0:01:46.8]} 30. Qf5 {[%clk
0:00:11]} 30... Re6+ {[%clk 0:01:46.3]} 31. Kd2 {[%clk 0:00:08.9]} 31... Nxf2
{[%clk 0:01:39]} 32. Bxf2 {[%clk 0:00:08.4]} 32... Qxf2+ {[%clk 0:01:39.3]} 33.
Qxf2 {[%clk 0:00:08.5]} 33... Bxf2 {[%clk 0:01:40.2]} 34. Rf1 {[%clk 0:00:09.1]}
34... Bd4 {[%clk 0:01:40.4]} 35. Kd3 {[%clk 0:00:09.2]} 35... Bxb2 {[%clk
0:01:37.8]} 36. Rg1+ {[%clk 0:00:08.1]} 36... Kf8 {[%clk 0:01:36.8]} 37. Nf4
{[%clk 0:00:08.4]} 37... Rh6 {[%clk 0:01:33.6]} 38. Ke4 {[%clk 0:00:07.4]} 38...
Be5 {[%clk 0:01:33.6]} 39. Nd3 {[%clk 0:00:04.6]} 39... Rh4+ {[%clk 0:01:33.2]}
40. Kd5 {[%clk 0:00:05.2]} 40... Rd4+ {[%clk 0:01:33]} 0-1

[Event "*** Titled Tuesday Blitz"]
[Site "Chess.com"]
[Date "2020.10.27"]
[Round "1"]
[White "JoachimMouhamad"]
[Black "manitodeplomo"]
[Result "0-1"]
[WhiteElo "2289"]
[BlackElo "2632"]
[TimeControl "180+1"]
[EndTime "10:06:01 PDT"]
[Termination "manitodeplomo won by checkmate"]

1. e4 {[%clk 0:02:56]} 1... g6 {[%clk 0:02:59.4]} 2. d4 {[%clk 0:02:53.8]} 2...
Bg7 {[%clk 0:02:59.7]} 3. Nf3 {[%clk 0:02:52.3]} 3... c5 {[%clk 0:03:00.6]} 4.
dxc5 {[%clk 0:02:50.5]} 4... Nf6 {[%clk 0:02:58]} 5. Nc3 {[%clk 0:02:33.2]} 5...
Qa5 {[%clk 0:02:56.6]} 6. Bd2 {[%clk 0:02:32.5]} 6... Qxc5 {[%clk 0:02:56]} 7.
Bd3 {[%clk 0:02:16.1]} 7... O-O {[%clk 0:02:52.8]} 8. O-O {[%clk 0:02:15.7]}
8... d6 {[%clk 0:02:52.5]} 9. h3 {[%clk 0:02:14.6]} 9... a6 {[%clk 0:02:51.4]}
10. Be3 {[%clk 0:02:14.1]} 10... Qc7 {[%clk 0:02:51]} 11. Qd2 {[%clk 0:02:13.8]}
11... Nbd7 {[%clk 0:02:48.2]} 12. a4 {[%clk 0:02:02]} 12... b6 {[%clk
0:02:47.7]} 13. Bh6 {[%clk 0:01:59.4]} 13... Bb7 {[%clk 0:02:46.6]} 14. Bxg7
{[%clk 0:01:59.6]} 14... Kxg7 {[%clk 0:02:47.5]} 15. Rfe1 {[%clk 0:02:00.3]}
15... h6 {[%clk 0:02:39.8]} 16. Rad1 {[%clk 0:01:57.3]} 16... Rfd8 {[%clk
0:02:37.1]} 17. Bf1 {[%clk 0:01:54.2]} 17... Nc5 {[%clk 0:02:26.9]} 18. Bd3
{[%clk 0:01:41.9]} 18... e5 {[%clk 0:02:21.1]} 19. Qe3 {[%clk 0:01:09.3]} 19...
Rac8 {[%clk 0:02:19]} 20. g4 {[%clk 0:01:05.3]} 20... Ne6 {[%clk 0:02:16.2]} 21.
Ne2 {[%clk 0:01:03.7]} 21... Qc6 {[%clk 0:02:10.3]} 22. Nc3 {[%clk 0:01:00.3]}
22... Nf4 {[%clk 0:02:07.3]} 23. Kh2 {[%clk 0:00:59.7]} 23... Nd7 {[%clk
0:01:59.3]} 24. Ra1 {[%clk 0:00:51.3]} 24... Nc5 {[%clk 0:01:55.2]} 25. Nd2
{[%clk 0:00:37.4]} 25... Nce6 {[%clk 0:01:42.6]} 26. f3 {[%clk 0:00:36.2]} 26...
h5 {[%clk 0:01:40.6]} 27. Kg3 {[%clk 0:00:31.2]} 27... Rh8 {[%clk 0:01:38.9]}
28. Bc4 {[%clk 0:00:24.7]} 28... hxg4 {[%clk 0:01:37.4]} 29. hxg4 {[%clk
0:00:22.7]} 29... Rh3+ {[%clk 0:01:37.6]} 30. Kf2 {[%clk 0:00:22.8]} 30... Rh2+
{[%clk 0:01:37.4]} 31. Kf1 {[%clk 0:00:22.3]} 31... Rch8 {[%clk 0:01:35.4]} 32.
Ne2 {[%clk 0:00:18.5]} 32... Nxe2 {[%clk 0:01:24.6]} 33. Bxe6 {[%clk 0:00:17.1]}
33... Nf4 {[%clk 0:01:20.8]} 34. Bc4 {[%clk 0:00:14.6]} 34... Rh1+ {[%clk
0:01:16.8]} 35. Kf2 {[%clk 0:00:13.9]} 35... R8h2+ {[%clk 0:01:17]} 36. Kg3
{[%clk 0:00:12.7]} 36... Rg2# {[%clk 0:01:17.3]} 0-1

[Event "*** Titled Tuesday Blitz"]
[Site "Chess.com"]
[Date "2020.10.27"]
[Round "1"]
[White "OK97"]
[Black "Tenamu"]
[Result "1-0"]
[WhiteElo "2780"]
[BlackElo "2406"]
[TimeControl "180+1"]
[EndTime "10:06:02 PDT"]
[Termination "OK97 won by resignation"]

1. e4 {[%clk 0:03:00.9]} 1... e6 {[%clk 0:02:58.9]} 2. d4 {[%clk 0:03:00.5]}
2... d5 {[%clk 0:02:58.6]} 3. Nc3 {[%clk 0:03:00.9]} 3... Nf6 {[%clk 0:02:58.2]}
4. Bg5 {[%clk 0:02:59.9]} 4... Bb4 {[%clk 0:02:58.4]} 5. e5 {[%clk 0:02:56.4]}
5... h6 {[%clk 0:02:58.6]} 6. Bd2 {[%clk 0:02:52.6]} 6... Bxc3 {[%clk
0:02:58.1]} 7. bxc3 {[%clk 0:02:53.5]} 7... Ne4 {[%clk 0:02:58.3]} 8. Bc1 {[%clk
0:02:53.8]} 8... c5 {[%clk 0:02:56.2]} 9. Ne2 {[%clk 0:02:47.2]} 9... cxd4
{[%clk 0:02:48]} 10. cxd4 {[%clk 0:02:44.7]} 10... Nc6 {[%clk 0:02:47.9]} 11. c3
{[%clk 0:02:38.9]} 11... Qa5 {[%clk 0:02:46.6]} 12. Qc2 {[%clk 0:02:27.4]} 12...
f6 {[%clk 0:02:27.5]} 13. f3 {[%clk 0:02:23.8]} 13... Ng5 {[%clk 0:02:25.2]} 14.
Qg6+ {[%clk 0:02:15.5]} 14... Kf8 {[%clk 0:02:20.7]} 15. exf6 {[%clk 0:02:15.3]}
15... gxf6 {[%clk 0:02:18.9]} 16. Qxf6+ {[%clk 0:02:15.1]} 16... Nf7 {[%clk
0:02:18.7]} 17. Bd2 {[%clk 0:01:59]} 17... Qc7 {[%clk 0:02:12.2]} 18. Nf4 {[%clk
0:01:56.7]} 18... Rg8 {[%clk 0:02:04.9]} 19. Bd3 {[%clk 0:01:43.8]} 19... e5
{[%clk 0:01:53.5]} 20. Ng6+ {[%clk 0:01:39.4]} 20... Ke8 {[%clk 0:01:52.7]} 21.
O-O {[%clk 0:01:35.9]} 21... Qd6 {[%clk 0:01:49.9]} 22. Qxd6 {[%clk 0:01:31.8]}
22... Nxd6 {[%clk 0:01:50.6]} 23. dxe5 {[%clk 0:01:27.2]} 23... Nc4 {[%clk
0:01:49.6]} 24. Bxh6 {[%clk 0:01:26.2]} 24... Be6 {[%clk 0:01:44.4]} 25. Nf4
{[%clk 0:01:21.9]} 25... Kd7 {[%clk 0:01:42.8]} 26. Nxe6 {[%clk 0:01:19.8]}
26... Kxe6 {[%clk 0:01:43.7]} 27. Bxc4 {[%clk 0:01:11.6]} 27... dxc4 {[%clk
0:01:42.9]} 28. f4 {[%clk 0:01:11.3]} 28... Raf8 {[%clk 0:01:40.5]} 29. Rad1
{[%clk 0:01:10.2]} 29... Rf5 {[%clk 0:01:34.2]} 30. Rd6+ {[%clk 0:01:09.4]}
30... Ke7 {[%clk 0:01:34.1]} 31. Rfd1 {[%clk 0:01:06.9]} 31... Kf7 {[%clk
0:01:25.4]} 32. h4 {[%clk 0:01:01.6]} 32... Rg3 {[%clk 0:01:13.4]} 33. e6+
{[%clk 0:00:57.6]} 33... Ke8 {[%clk 0:01:09.2]} 34. Bg5 {[%clk 0:00:56.4]} 34...
Kf8 {[%clk 0:01:01.2]} 35. Rxc6 {[%clk 0:00:47.5]} 35... bxc6 {[%clk 0:00:55.9]}
36. Rd8+ {[%clk 0:00:47.1]} 36... Kg7 {[%clk 0:00:55.4]} 37. e7 {[%clk 0:00:48]}
1-0

[Event "*** Titled Tuesday Blitz"]
[Site "Chess.com"]
[Date "2020.10.27"]
[Round "1"]
[White "Paladin61"]
[Black "anon569"]
[Result "1-0"]
[WhiteElo "2601"]
[BlackElo "2262"]
[TimeControl "180+1"]
[EndTime "10:06:06 PDT"]
[Termination "Paladin61 won by resignation"]

1. b3 {[%clk 0:02:56.5]} 1... Nf6 {[%clk 0:02:57.4]} 2. Bb2 {[%clk 0:02:57.4]}
2... g6 {[%clk 0:02:56.2]} 3. Bxf6 {[%clk 0:02:57.1]} 3... exf6 {[%clk
0:02:55.3]} 4. c4 {[%clk 0:02:57.6]} 4... Bg7 {[%clk 0:02:54.4]} 5. Nc3 {[%clk
0:02:57.7]} 5... f5 {[%clk 0:02:53.9]} 6. Rc1 {[%clk 0:02:57]} 6... d6 {[%clk
0:02:50.7]} 7. g3 {[%clk 0:02:56.6]} 7... O-O {[%clk 0:02:47]} 8. Bg2 {[%clk
0:02:56.7]} 8... Nd7 {[%clk 0:02:47]} 9. e3 {[%clk 0:02:52.1]} 9... Nf6 {[%clk
0:02:45.6]} 10. Nge2 {[%clk 0:02:50.1]} 10... c6 {[%clk 0:02:43.7]} 11. d4
{[%clk 0:02:47.1]} 11... Re8 {[%clk 0:02:41.3]} 12. Qd3 {[%clk 0:02:47.1]} 12...
Qe7 {[%clk 0:02:38.9]} 13. O-O {[%clk 0:02:44.7]} 13... Ne4 {[%clk 0:02:30.7]}
14. b4 {[%clk 0:02:44.9]} 14... Bd7 {[%clk 0:02:21.6]} 15. b5 {[%clk 0:02:44]}
15... h5 {[%clk 0:01:55.5]} 16. Rb1 {[%clk 0:02:39.4]} 16... Rab8 {[%clk
0:01:53.3]} 17. Rb3 {[%clk 0:02:33.7]} 17... cxb5 {[%clk 0:01:18.7]} 18. Nxb5
{[%clk 0:02:26.3]} 18... a6 {[%clk 0:01:18.3]} 19. Nc7 {[%clk 0:02:16.1]} 19...
Red8 {[%clk 0:00:40]} 20. Nd5 {[%clk 0:02:06.2]} 20... Qe8 {[%clk 0:00:39.6]}
21. Rfb1 {[%clk 0:02:02.7]} 21... b5 {[%clk 0:00:38.5]} 22. Nc7 {[%clk
0:01:46.9]} 22... Qe7 {[%clk 0:00:09.5]} 23. cxb5 {[%clk 0:01:41.7]} 23... axb5
{[%clk 0:00:05.1]} 24. Nxb5 {[%clk 0:01:39.7]} 24... Be6 {[%clk 0:00:05]} 25.
R3b2 {[%clk 0:01:34.3]} 25... Rbc8 {[%clk 0:00:05.2]} 26. Na3 {[%clk 0:01:23.1]}
26... Ra8 {[%clk 0:00:03.8]} 27. Nf4 {[%clk 0:01:19.8]} 27... Qa7 {[%clk
0:00:01.1]} 28. Nb5 {[%clk 0:01:14.4]} 28... Bd7 {[%clk 0:00:01.1]} 29. Nxa7
{[%clk 0:01:13.6]} 1-0

[Event "*** Titled Tuesday Blitz"]
[Site "Chess.com"]
[Date "2020.10.27"]
[Round "1"]
[White "ajian"]
[Black "GoltsevDmitry2000"]
[Result "0-1"]
[WhiteElo "2348"]
[BlackElo "2693"]
[TimeControl "180+1"]
[EndTime "10:06:09 PDT"]
[Termination "GoltsevDmitry2000 won on time"]

1. d4 {[%clk 0:03:00.9]} 1... Nf6 {[%clk 0:02:58.3]} 2. c4 {[%clk 0:03:00.8]}
2... e6 {[%clk 0:02:56.9]} 3. Nc3 {[%clk 0:03:00.8]} 3... Bb4 {[%clk 0:02:55.6]}
4. Qc2 {[%clk 0:03:00.9]} 4... Qe7 {[%clk 0:02:55.2]} 5. Nf3 {[%clk 0:02:56.8]}
5... b6 {[%clk 0:02:54.6]} 6. Bg5 {[%clk 0:02:55]} 6... h6 {[%clk 0:02:53.3]} 7.
Bh4 {[%clk 0:02:54.9]} 7... Bb7 {[%clk 0:02:52.9]} 8. e3 {[%clk 0:02:44.8]} 8...
O-O {[%clk 0:02:49.6]} 9. Bd3 {[%clk 0:02:43.8]} 9... d6 {[%clk 0:02:48]} 10.
O-O {[%clk 0:02:34.1]} 10... Bxc3 {[%clk 0:02:45]} 11. Qxc3 {[%clk 0:02:30]}
11... a5 {[%clk 0:02:39.4]} 12. Qc2 {[%clk 0:02:17.6]} 12... Nbd7 {[%clk
0:02:38]} 13. e4 {[%clk 0:02:14]} 13... e5 {[%clk 0:02:38]} 14. Rfe1 {[%clk
0:01:56.4]} 14... Rfe8 {[%clk 0:02:30.4]} 15. Rad1 {[%clk 0:01:49.9]} 15... Nf8
{[%clk 0:02:28.7]} 16. d5 {[%clk 0:01:26.4]} 16... Ng6 {[%clk 0:02:26.5]} 17.
Bg3 {[%clk 0:01:25.8]} 17... Nh5 {[%clk 0:02:22]} 18. Bf1 {[%clk 0:01:24.3]}
18... Bc8 {[%clk 0:02:15.4]} 19. Nd2 {[%clk 0:01:15.5]} 19... Nhf4 {[%clk
0:02:13.8]} 20. b3 {[%clk 0:01:04.2]} 20... Bd7 {[%clk 0:02:13.5]} 21. a3 {[%clk
0:01:03.9]} 21... Rf8 {[%clk 0:02:11]} 22. b4 {[%clk 0:01:00.3]} 22... axb4
{[%clk 0:02:10.9]} 23. axb4 {[%clk 0:01:01.2]} 23... Ra4 {[%clk 0:02:04.9]} 24.
Qc3 {[%clk 0:00:56.3]} 24... f5 {[%clk 0:02:00.4]} 25. f3 {[%clk 0:00:51.9]}
25... Rfa8 {[%clk 0:01:56.9]} 26. Ra1 {[%clk 0:00:48.3]} 26... h5 {[%clk
0:01:55.1]} 27. exf5 {[%clk 0:00:37.5]} 27... Bxf5 {[%clk 0:01:54]} 28. Ne4
{[%clk 0:00:36.7]} 28... h4 {[%clk 0:01:41.3]} 29. Bf2 {[%clk 0:00:36.1]} 29...
Bxe4 {[%clk 0:01:37.3]} 30. fxe4 {[%clk 0:00:30.8]} 30... Qg5 {[%clk 0:01:37.5]}
31. Kh1 {[%clk 0:00:23.4]} 31... Ra2 {[%clk 0:01:30.5]} 32. Be3 {[%clk
0:00:10.2]} 32... Qg4 {[%clk 0:01:22.7]} 33. Rxa2 {[%clk 0:00:03.5]} 33... Rxa2
{[%clk 0:01:22.1]} 0-1

[Event "*** Titled Tuesday Blitz"]
[Site "Chess.com"]
[Date "2020.10.27"]
[Round "1"]
[White "SARGISMV"]
[Black "RU_B9"]
[Result "1-0"]
[WhiteElo "2498"]
[BlackElo "1724"]
[TimeControl "180+1"]
[EndTime "10:06:09 PDT"]
[Termination "SARGISMV won by resignation"]

1. d4 {[%clk 0:03:00.9]} 1... Nf6 {[%clk 0:02:58.9]} 2. Nf3 {[%clk 0:03:00.2]}
2... d5 {[%clk 0:02:57.2]} 3. c4 {[%clk 0:02:59.7]} 3... e6 {[%clk 0:02:57.1]}
4. Nc3 {[%clk 0:03:00.2]} 4... Bb4 {[%clk 0:02:56.3]} 5. Bg5 {[%clk 0:02:59.4]}
5... h6 {[%clk 0:02:55.7]} 6. Bxf6 {[%clk 0:02:58.3]} 6... Qxf6 {[%clk
0:02:56.6]} 7. cxd5 {[%clk 0:02:58.6]} 7... exd5 {[%clk 0:02:56.4]} 8. Rc1
{[%clk 0:02:57.7]} 8... c6 {[%clk 0:02:53.5]} 9. e3 {[%clk 0:02:57.8]} 9... O-O
{[%clk 0:02:45]} 10. Be2 {[%clk 0:02:57.5]} 10... Bf5 {[%clk 0:02:34.7]} 11. O-O
{[%clk 0:02:56.5]} 11... Re8 {[%clk 0:02:32.7]} 12. Qb3 {[%clk 0:02:55.4]} 12...
Qe7 {[%clk 0:02:31.6]} 13. a3 {[%clk 0:02:55.1]} 13... Bd6 {[%clk 0:02:30]} 14.
Rfe1 {[%clk 0:02:49.3]} 14... b6 {[%clk 0:01:59]} 15. Bf1 {[%clk 0:02:26.2]}
15... Nd7 {[%clk 0:01:54.1]} 16. Ne2 {[%clk 0:02:25.5]} 16... Nf6 {[%clk
0:01:48.7]} 17. Ng3 {[%clk 0:02:25]} 17... Bd7 {[%clk 0:01:44.3]} 18. Bd3 {[%clk
0:02:19.9]} 18... Ne4 {[%clk 0:01:43.3]} 19. Bxe4 {[%clk 0:02:13]} 19... dxe4
{[%clk 0:01:41]} 20. Nd2 {[%clk 0:02:13.5]} 20... Be6 {[%clk 0:01:17.8]} 21. Qd1
{[%clk 0:01:51.6]} 21... Bd5 {[%clk 0:01:10.8]} 22. Nf5 {[%clk 0:01:51.1]} 22...
Qf6 {[%clk 0:01:06.3]} 23. Nxd6 {[%clk 0:01:50.4]} 23... Qxd6 {[%clk 0:01:06.4]}
24. Nc4 {[%clk 0:01:49.9]} 24... Qe6 {[%clk 0:01:01]} 25. Ne5 {[%clk 0:01:44.7]}
25... Rac8 {[%clk 0:00:57.1]} 26. Qh5 {[%clk 0:01:43.4]} 26... Re7 {[%clk
0:00:51.8]} 27. b4 {[%clk 0:01:42.1]} 27... Kh7 {[%clk 0:00:45.6]} 28. h3 {[%clk
0:01:39.6]} 28... g6 {[%clk 0:00:43.6]} 29. Qh4 {[%clk 0:01:30.9]} 29... Rce8
{[%clk 0:00:20.9]} 30. Ng4 {[%clk 0:01:27.6]} 30... h5 {[%clk 0:00:19.2]} 31.
Nf6+ {[%clk 0:01:27.1]} 31... Kg7 {[%clk 0:00:18.2]} 32. Nxe8+ {[%clk
0:01:26.9]} 32... Rxe8 {[%clk 0:00:18.4]} 33. Rc3 {[%clk 0:01:22.7]} 33... b5
{[%clk 0:00:18.3]} 34. Rec1 {[%clk 0:01:22.3]} 34... Ra8 {[%clk 0:00:18.7]} 35.
Qg3 {[%clk 0:01:20]} 35... Qe7 {[%clk 0:00:16.1]} 36. Rc5 {[%clk 0:01:14.7]}
36... f6 {[%clk 0:00:14.4]} 37. Rxd5 {[%clk 0:01:10.2]} 1-0

[Event "*** Titled Tuesday Blitz"]
[Site "Chess.com"]
[Date "2020.10.27"]
[Round "1"]
[White "Aleksey_Sorokin"]
[Black "Fischerev7"]
[Result "1-0"]
[WhiteElo "2834"]
[BlackElo "2436"]
[TimeControl "180+1"]
[EndTime "10:06:13 PDT"]
[Termination "Aleksey_Sorokin won on time"]

1. d4 {[%clk 0:03:00.9]} 1... Nf6 {[%clk 0:02:56]} 2. c4 {[%clk 0:03:00.2]} 2...
e6 {[%clk 0:02:55]} 3. Nf3 {[%clk 0:02:59.8]} 3... Bb4+ {[%clk 0:02:48.9]} 4.
Nbd2 {[%clk 0:02:59.5]} 4... O-O {[%clk 0:02:46.6]} 5. a3 {[%clk 0:02:59.6]}
5... Be7 {[%clk 0:02:45.8]} 6. e4 {[%clk 0:02:59.7]} 6... d5 {[%clk 0:02:46]} 7.
e5 {[%clk 0:02:59.5]} 7... Nfd7 {[%clk 0:02:46.1]} 8. Bd3 {[%clk 0:02:59.6]}
8... c5 {[%clk 0:02:34.3]} 9. h4 {[%clk 0:02:59.4]} 9... h6 {[%clk 0:02:25.6]}
10. Bb1 {[%clk 0:02:57.1]} 10... cxd4 {[%clk 0:02:20.8]} 11. Qc2 {[%clk
0:02:49.5]} 11... f5 {[%clk 0:02:20]} 12. cxd5 {[%clk 0:02:48.3]} 12... exd5
{[%clk 0:02:14.2]} 13. Nb3 {[%clk 0:02:48.2]} 13... Nc6 {[%clk 0:02:11.6]} 14.
Bf4 {[%clk 0:02:48]} 14... Qb6 {[%clk 0:01:59.5]} 15. O-O {[%clk 0:02:36.4]}
15... Nc5 {[%clk 0:01:58.8]} 16. Nbxd4 {[%clk 0:02:26.9]} 16... Nxd4 {[%clk
0:01:46.7]} 17. Nxd4 {[%clk 0:02:27.8]} 17... Bxh4 {[%clk 0:01:44.7]} 18. Ba2
{[%clk 0:02:23.8]} 18... Ne6 {[%clk 0:00:59.7]} 19. Nxe6 {[%clk 0:02:02.4]}
19... Bxe6 {[%clk 0:00:58.8]} 20. Rad1 {[%clk 0:02:02.3]} 20... Rac8 {[%clk
0:00:55.6]} 21. Qe2 {[%clk 0:01:56.5]} 21... Rfd8 {[%clk 0:00:48]} 22. Qh5
{[%clk 0:01:51.4]} 22... Be7 {[%clk 0:00:45.7]} 23. b4 {[%clk 0:01:45.6]} 23...
a5 {[%clk 0:00:45.1]} 24. Qg6 {[%clk 0:01:41]} 24... axb4 {[%clk 0:00:43.5]} 25.
axb4 {[%clk 0:01:36.8]} 25... Bf8 {[%clk 0:00:17.6]} 26. Rxd5 {[%clk 0:01:28]}
26... Qc6 {[%clk 0:00:05.8]} 27. Rxd8 {[%clk 0:01:19.6]} 27... Bxa2 {[%clk
0:00:05.3]} 28. Qxc6 {[%clk 0:01:15.3]} 28... Rxc6 {[%clk 0:00:05.3]} 29. Rfd1
{[%clk 0:01:13.3]} 29... Be6 {[%clk 0:00:03.3]} 30. Rb8 {[%clk 0:01:10.4]} 30...
Rb6 {[%clk 0:00:02.7]} 31. Rdd8 {[%clk 0:01:09.2]} 1-0

[Event "*** Titled Tuesday Blitz"]
[Site "Chess.com"]
[Date "2020.10.27"]
[Round "1"]
[White "ViktoriyaTarasova"]
[Black "keepitcoming"]
[Result "1-0"]
[WhiteElo "2267"]
[BlackElo "2582"]
[TimeControl "180+1"]
[EndTime "10:06:14 PDT"]
[Termination "ViktoriyaTarasova won by resignation"]

1. d4 {[%clk 0:03:00.7]} 1... d5 {[%clk 0:02:55.5]} 2. c4 {[%clk 0:03:00.1]}
2... e6 {[%clk 0:02:55.5]} 3. Nc3 {[%clk 0:02:58.8]} 3... c5 {[%clk 0:02:54.7]}
4. cxd5 {[%clk 0:02:58.3]} 4... cxd4 {[%clk 0:02:48.7]} 5. Qxd4 {[%clk
0:02:56.1]} 5... Nc6 {[%clk 0:02:48.4]} 6. Qa4 {[%clk 0:02:53.8]} 6... exd5
{[%clk 0:02:47.7]} 7. Bf4 {[%clk 0:02:42.2]} 7... Nf6 {[%clk 0:02:33]} 8. e3
{[%clk 0:02:39.1]} 8... Bc5 {[%clk 0:02:29]} 9. Nf3 {[%clk 0:02:23.1]} 9... O-O
{[%clk 0:02:28.3]} 10. Be2 {[%clk 0:02:22.3]} 10... Re8 {[%clk 0:02:27.5]} 11.
O-O {[%clk 0:02:20.2]} 11... d4 {[%clk 0:02:14.2]} 12. exd4 {[%clk 0:01:29.5]}
12... Nxd4 {[%clk 0:02:11.4]} 13. Nxd4 {[%clk 0:01:26]} 13... Bxd4 {[%clk
0:02:04.6]} 14. Rad1 {[%clk 0:01:19.1]} 14... Qb6 {[%clk 0:01:53.6]} 15. Qxd4
{[%clk 0:01:10]} 15... Qxb2 {[%clk 0:01:33.3]} 16. Rb1 {[%clk 0:00:59.9]} 16...
Qa3 {[%clk 0:01:24.8]} 17. Bb5 {[%clk 0:00:56.6]} 17... Bf5 {[%clk 0:01:06.7]}
18. Bxe8 {[%clk 0:00:54.8]} 18... Bxb1 {[%clk 0:01:05.6]} 19. Bxf7+ {[%clk
0:00:42.5]} 19... Kxf7 {[%clk 0:01:03.8]} 20. Rxb1 {[%clk 0:00:42.3]} 20... b6
{[%clk 0:01:01.9]} 21. Qc4+ {[%clk 0:00:38.2]} 21... Kg6 {[%clk 0:00:49.9]} 22.
h3 {[%clk 0:00:36.8]} 22... Re8 {[%clk 0:00:46.2]} 23. Nd5 {[%clk 0:00:26.3]}
23... Nxd5 {[%clk 0:00:27.1]} 24. Qxd5 {[%clk 0:00:25.6]} 24... Qxa2 {[%clk
0:00:28]} 25. Qxa2 {[%clk 0:00:24.7]} 1-0

[Event "*** Titled Tuesday Blitz"]
[Site "Chess.com"]
[Date "2020.10.27"]
[Round "1"]
[White "Msb2"]
[Black "ShahMatKanal"]
[Result "1-0"]
[WhiteElo "2915"]
[BlackElo "2470"]
[TimeControl "180+1"]
[EndTime "10:06:16 PDT"]
[Termination "Msb2 won on time"]

1. d4 {[%clk 0:03:00.9]} 1... d5 {[%clk 0:02:59.5]} 2. Nf3 {[%clk 0:03:00.7]}
2... Nf6 {[%clk 0:02:57.6]} 3. Bf4 {[%clk 0:02:59.3]} 3... c5 {[%clk 0:02:57.1]}
4. e3 {[%clk 0:02:59.7]} 4... cxd4 {[%clk 0:02:56.3]} 5. exd4 {[%clk 0:03:00.6]}
5... Nc6 {[%clk 0:02:56.1]} 6. Nbd2 {[%clk 0:03:01]} 6... Bg4 {[%clk 0:02:54.9]}
7. c3 {[%clk 0:03:00.8]} 7... e6 {[%clk 0:02:33.5]} 8. Qb3 {[%clk 0:02:59.7]}
8... Qc8 {[%clk 0:02:21]} 9. Bd3 {[%clk 0:02:58.2]} 9... Be7 {[%clk 0:02:18.9]}
10. O-O {[%clk 0:02:56.6]} 10... O-O {[%clk 0:02:18.9]} 11. Rae1 {[%clk
0:02:56.2]} 11... Bh5 {[%clk 0:02:13.9]} 12. Ne5 {[%clk 0:02:55.1]} 12... Nxe5
{[%clk 0:02:07.2]} 13. Bxe5 {[%clk 0:02:51.6]} 13... Bg6 {[%clk 0:02:05.8]} 14.
Bxg6 {[%clk 0:02:46.4]} 14... hxg6 {[%clk 0:02:06.7]} 15. g3 {[%clk 0:02:42.7]}
15... Qc6 {[%clk 0:01:59.7]} 16. h4 {[%clk 0:02:37.9]} 16... b5 {[%clk
0:01:52.7]} 17. Kg2 {[%clk 0:02:28.9]} 17... a5 {[%clk 0:01:49.7]} 18. Bxf6
{[%clk 0:02:28]} 18... gxf6 {[%clk 0:01:46]} 19. h5 {[%clk 0:02:24.9]} 19... g5
{[%clk 0:01:16.7]} 20. f4 {[%clk 0:02:24.2]} 20... f5 {[%clk 0:01:10.1]} 21. Nf3
{[%clk 0:02:22.5]} 21... gxf4 {[%clk 0:01:01.3]} 22. Ne5 {[%clk 0:02:20.4]}
22... Qb7 {[%clk 0:00:45.5]} 23. Rxf4 {[%clk 0:02:20.4]} 23... Bg5 {[%clk
0:00:34.4]} 24. Rf3 {[%clk 0:02:17]} 24... Kh7 {[%clk 0:00:31.5]} 25. g4 {[%clk
0:02:16.8]} 25... Rg8 {[%clk 0:00:28]} 26. Kh3 {[%clk 0:02:14.2]} 26... fxg4+
{[%clk 0:00:26.8]} 27. Nxg4 {[%clk 0:02:14.2]} 27... f5 {[%clk 0:00:25.1]} 28.
Ne5 {[%clk 0:02:14.5]} 28... Qg7 {[%clk 0:00:21.1]} 29. Rg3 {[%clk 0:01:50.9]}
29... Qh6 {[%clk 0:00:19.6]} 30. Qd1 {[%clk 0:01:51.5]} 30... Bf4 {[%clk
0:00:19.6]} 31. Rg6 {[%clk 0:01:51.7]} 31... Rxg6 {[%clk 0:00:18.3]} 32. Nxg6
{[%clk 0:01:52.6]} 32... Rg8 {[%clk 0:00:15.7]} 33. Rxe6 {[%clk 0:01:50.6]}
33... Qg5 {[%clk 0:00:15.9]} 34. Qf3 {[%clk 0:01:47.4]} 34... Bb8 {[%clk
0:00:12.3]} 35. Ne5 {[%clk 0:01:25.1]} 35... Rg7 {[%clk 0:00:09.8]} 36. Rg6
{[%clk 0:01:18.7]} 36... Bxe5 {[%clk 0:00:07.4]} 37. Rxg5 {[%clk 0:01:18.2]} 1-0